[Event "Early-Titled-Tuesday-Blitz-January-16-2024"]
[Site "Chess.com"]
[Date "2024.01.16"]
[Round "6"]
[White "santosalberto1987"]
[Black "Bushonica"]
[Result "1-0"]
[WhiteElo "2495"]
[BlackElo "1808"]
[TimeControl "180+1"]
[EndTime "9:06:02 PST"]
[Termination "santosalberto1987 won by resignation"]

1. e4 {[%clk 0:03:00.9]} 1... e5 {[%clk 0:02:58.4]} 2. Nf3 {[%clk 0:03:00.8]}
2... Nf6 {[%clk 0:02:56.7]} 3. Nxe5 {[%clk 0:02:59.5]} 3... Qe7 {[%clk 0:02:56]}
4. d4 {[%clk 0:02:58.1]} 4... d6 {[%clk 0:02:55.9]} 5. Nf3 {[%clk 0:02:58.1]}
5... Nxe4 {[%clk 0:02:53.6]} 6. Be2 {[%clk 0:02:58.3]} 6... Nf6 {[%clk
0:02:53.1]} 7. O-O {[%clk 0:02:57.9]} 7... c6 {[%clk 0:02:47]} 8. Re1 {[%clk
0:02:57.6]} 8... Be6 {[%clk 0:02:46.3]} 9. Ng5 {[%clk 0:02:52.3]} 9... h6 {[%clk
0:02:43.8]} 10. Nxe6 {[%clk 0:02:49.7]} 10... fxe6 {[%clk 0:02:43.6]} 11. Bh5+
{[%clk 0:02:49.6]} 11... Kd7 {[%clk 0:02:41.2]} 12. c4 {[%clk 0:02:45.7]} 12...
Na6 {[%clk 0:02:39.3]} 13. Nc3 {[%clk 0:02:44.5]} 13... Nc7 {[%clk 0:02:39]} 14.
Bg4 {[%clk 0:02:39.9]} 14... d5 {[%clk 0:02:35.3]} 15. cxd5 {[%clk 0:02:39.3]}
15... Nfxd5 {[%clk 0:02:33.4]} 16. Nxd5 {[%clk 0:02:38]} 16... cxd5 {[%clk
0:02:32.7]} 17. Bf4 {[%clk 0:02:35.3]} 17... g5 {[%clk 0:02:27]} 18. Bxc7 {[%clk
0:02:28.4]} 18... Kxc7 {[%clk 0:02:25.9]} 19. Rc1+ {[%clk 0:02:27.4]} 19... Kd7
{[%clk 0:02:19.1]} 20. Rxe6 {[%clk 0:02:26.6]} 20... Qxe6 {[%clk 0:02:11.6]} 21.
Bxe6+ {[%clk 0:02:27.5]} 21... Kxe6 {[%clk 0:02:10.5]} 22. Qg4+ {[%clk
0:02:27.8]} 22... Kd6 {[%clk 0:02:09.5]} 23. Qg3+ {[%clk 0:02:23.1]} 23... Ke6
{[%clk 0:02:05.7]} 24. Qe5+ {[%clk 0:02:22.2]} 1-0

[Event "Early-Titled-Tuesday-Blitz-January-16-2024"]
[Site "Chess.com"]
[Date "2024.01.16"]
[Round "6"]
[White "Joshukid"]
[Black "Gabrielian_Artur"]
[Result "0-1"]
[WhiteElo "2607"]
[BlackElo "2792"]
[TimeControl "180+1"]
[EndTime "9:06:10 PST"]
[Termination "Gabrielian_Artur won by resignation"]

1. Nf3 {[%clk 0:02:53.8]} 1... Nf6 {[%clk 0:02:59.6]} 2. c4 {[%clk 0:02:53.7]}
2... g6 {[%clk 0:02:59.1]} 3. b3 {[%clk 0:02:53.9]} 3... Bg7 {[%clk 0:02:59.2]}
4. Bb2 {[%clk 0:02:54.8]} 4... O-O {[%clk 0:02:59.2]} 5. g3 {[%clk 0:02:55.5]}
5... d6 {[%clk 0:02:58.8]} 6. d4 {[%clk 0:02:55.2]} 6... e5 {[%clk 0:02:55.3]}
7. dxe5 {[%clk 0:02:55.1]} 7... Ng4 {[%clk 0:02:55]} 8. Bg2 {[%clk 0:02:37.7]}
8... Nc6 {[%clk 0:02:54.2]} 9. Qd2 {[%clk 0:02:36.8]} 9... dxe5 {[%clk
0:02:53.4]} 10. Nc3 {[%clk 0:02:35.7]} 10... e4 {[%clk 0:02:51.4]} 11. Qxd8
{[%clk 0:02:28.9]} 11... Rxd8 {[%clk 0:02:48.9]} 12. Ng5 {[%clk 0:02:24.2]}
12... e3 {[%clk 0:02:35.5]} 13. f4 {[%clk 0:02:24.1]} 13... Rd2 {[%clk
0:02:29.5]} 14. Bxc6 {[%clk 0:01:58]} 14... bxc6 {[%clk 0:02:16.4]} 15. Rd1
{[%clk 0:01:51.2]} 15... Bxc3 {[%clk 0:02:10]} 0-1

[Event "Early-Titled-Tuesday-Blitz-January-16-2024"]
[Site "Chess.com"]
[Date "2024.01.16"]
[Round "6"]
[White "ozates"]
[Black "SarochaChuemsakul"]
[Result "0-1"]
[WhiteElo "2581"]
[BlackElo "2454"]
[TimeControl "180+1"]
[EndTime "9:06:20 PST"]
[Termination "SarochaChuemsakul won by resignation"]

1. c4 {[%clk 0:03:00.9]} 1... Nf6 {[%clk 0:02:59.1]} 2. g3 {[%clk 0:02:59.3]}
2... g6 {[%clk 0:02:59.7]} 3. Bg2 {[%clk 0:02:57.9]} 3... Bg7 {[%clk 0:03:00.4]}
4. Nc3 {[%clk 0:02:58.3]} 4... O-O {[%clk 0:03:01]} 5. e4 {[%clk 0:02:58.3]}
5... d6 {[%clk 0:03:01.7]} 6. Nge2 {[%clk 0:02:58]} 6... c5 {[%clk 0:02:58.8]}
7. O-O {[%clk 0:02:57.5]} 7... Nc6 {[%clk 0:02:59.2]} 8. d3 {[%clk 0:02:58.2]}
8... a6 {[%clk 0:02:58.7]} 9. h3 {[%clk 0:02:58.4]} 9... Rb8 {[%clk 0:02:59.2]}
10. a4 {[%clk 0:02:58.4]} 10... Ne8 {[%clk 0:02:56.1]} 11. Be3 {[%clk
0:02:58.3]} 11... Nd4 {[%clk 0:02:55.6]} 12. Rb1 {[%clk 0:02:57]} 12... Nxe2+
{[%clk 0:02:43.1]} 13. Qxe2 {[%clk 0:02:53]} 13... Bd7 {[%clk 0:02:37.9]} 14.
Rfd1 {[%clk 0:02:52.4]} 14... e5 {[%clk 0:02:32.9]} 15. b4 {[%clk 0:02:50.7]}
15... b6 {[%clk 0:02:32.4]} 16. b5 {[%clk 0:02:48.8]} 16... a5 {[%clk
0:02:26.6]} 17. Nd5 {[%clk 0:02:48.4]} 17... Nc7 {[%clk 0:02:26.8]} 18. Qd2
{[%clk 0:02:46.7]} 18... Nxd5 {[%clk 0:02:27.2]} 19. cxd5 {[%clk 0:02:45.5]}
19... f5 {[%clk 0:02:22.5]} 20. Bg5 {[%clk 0:02:45.2]} 20... Bf6 {[%clk
0:02:21.9]} 21. h4 {[%clk 0:02:43.3]} 21... Bxg5 {[%clk 0:02:17.5]} 22. hxg5
{[%clk 0:02:42.5]} 22... f4 {[%clk 0:02:17.7]} 23. Bf3 {[%clk 0:02:34.4]} 23...
Qxg5 {[%clk 0:02:17.1]} 24. Kg2 {[%clk 0:02:34.9]} 24... Bg4 {[%clk 0:02:05.9]}
25. Qe2 {[%clk 0:02:27.7]} 25... fxg3 {[%clk 0:01:51.8]} 26. Bxg4 {[%clk
0:02:26.4]} 26... Rxf2+ {[%clk 0:01:51.4]} 27. Kg1 {[%clk 0:02:25.7]} 27... Rxe2
{[%clk 0:01:50.6]} 0-1

[Event "Early-Titled-Tuesday-Blitz-January-16-2024"]
[Site "Chess.com"]
[Date "2024.01.16"]
[Round "6"]
[White "Let_it_be_1"]
[Black "giomar27"]
[Result "1-0"]
[WhiteElo "2617"]
[BlackElo "2415"]
[TimeControl "180+1"]
[EndTime "9:06:42 PST"]
[Termination "Let_it_be_1 won by resignation"]

1. e4 {[%clk 0:03:00.9]} 1... g6 {[%clk 0:03:00]} 2. d4 {[%clk 0:03:00.8]} 2...
Bg7 {[%clk 0:03:00.7]} 3. Nc3 {[%clk 0:03:01.5]} 3... a6 {[%clk 0:03:00]} 4. f4
{[%clk 0:03:00.8]} 4... b5 {[%clk 0:03:00.2]} 5. Nf3 {[%clk 0:03:00.6]} 5... d6
{[%clk 0:03:00.4]} 6. Bd3 {[%clk 0:03:00.1]} 6... Nd7 {[%clk 0:03:00.4]} 7. a4
{[%clk 0:02:57.1]} 7... b4 {[%clk 0:02:58.3]} 8. Ne2 {[%clk 0:02:57.1]} 8... Bb7
{[%clk 0:02:58.2]} 9. O-O {[%clk 0:02:55.4]} 9... e6 {[%clk 0:02:56.8]} 10. c3
{[%clk 0:02:54.7]} 10... a5 {[%clk 0:02:55.6]} 11. f5 {[%clk 0:02:46.9]} 11...
c5 {[%clk 0:02:45]} 12. fxe6 {[%clk 0:02:38.6]} 12... fxe6 {[%clk 0:02:44.8]}
13. Ng5 {[%clk 0:02:38.3]} 13... Nf8 {[%clk 0:02:29.6]} 14. Nf7 {[%clk
0:02:32.1]} 14... Qb6 {[%clk 0:02:29.7]} 15. Bb5+ {[%clk 0:02:20.2]} 15... Nd7
{[%clk 0:02:22.8]} 16. Nf4 {[%clk 0:01:59.8]} 16... Nf6 {[%clk 0:02:06.1]} 17.
Nxh8 {[%clk 0:01:48.4]} 17... Bxh8 {[%clk 0:02:05.7]} 18. e5 {[%clk 0:01:44.1]}
18... dxe5 {[%clk 0:01:59.9]} 19. dxe5 {[%clk 0:01:43.9]} 19... Nd5 {[%clk
0:02:00.1]} 20. c4 {[%clk 0:01:42]} 20... Nxf4 {[%clk 0:01:58.1]} 21. Qxd7+
{[%clk 0:01:41.4]} 1-0

[Event "Early-Titled-Tuesday-Blitz-January-16-2024"]
[Site "Chess.com"]
[Date "2024.01.16"]
[Round "6"]
[White "Phelathegreat"]
[Black "sakkikuska"]
[Result "1-0"]
[WhiteElo "2446"]
[BlackElo "2590"]
[TimeControl "180+1"]
[EndTime "9:06:56 PST"]
[Termination "Phelathegreat won by resignation"]

1. d4 {[%clk 0:03:00.9]} 1... Nf6 {[%clk 0:02:59.8]} 2. c4 {[%clk 0:03:00.2]}
2... g6 {[%clk 0:03:00.3]} 3. Nc3 {[%clk 0:02:59.8]} 3... d5 {[%clk 0:03:00.8]}
4. Bf4 {[%clk 0:02:58.7]} 4... Bg7 {[%clk 0:02:59.2]} 5. e3 {[%clk 0:02:58.8]}
5... c5 {[%clk 0:02:54.1]} 6. dxc5 {[%clk 0:02:52.8]} 6... Qa5 {[%clk
0:02:53.9]} 7. Rc1 {[%clk 0:02:50.4]} 7... dxc4 {[%clk 0:02:49.7]} 8. Bxc4
{[%clk 0:02:46.7]} 8... O-O {[%clk 0:02:50.2]} 9. Ne2 {[%clk 0:02:39.6]} 9...
Qxc5 {[%clk 0:02:41.6]} 10. Nb5 {[%clk 0:02:34.5]} 10... Qb4+ {[%clk 0:02:38.1]}
11. Kf1 {[%clk 0:02:29.9]} 11... Na6 {[%clk 0:02:29.7]} 12. a3 {[%clk
0:02:19.8]} 12... Qa5 {[%clk 0:02:29.7]} 13. b4 {[%clk 0:02:15.5]} 13... Qd8
{[%clk 0:02:28.8]} 14. Qxd8 {[%clk 0:01:48.3]} 14... Rxd8 {[%clk 0:02:29.7]} 15.
f3 {[%clk 0:01:48.4]} 15... Bd7 {[%clk 0:02:22]} 16. Nbd4 {[%clk 0:01:39.1]}
16... Rac8 {[%clk 0:02:15]} 17. Kf2 {[%clk 0:01:38.4]} 17... Nc7 {[%clk
0:01:43.5]} 18. Bxc7 {[%clk 0:01:35.8]} 18... Rxc7 {[%clk 0:01:42.8]} 19. Bxf7+
{[%clk 0:01:35.4]} 19... Kxf7 {[%clk 0:01:43.7]} 1-0

[Event "Early-Titled-Tuesday-Blitz-January-16-2024"]
[Site "Chess.com"]
[Date "2024.01.16"]
[Round "6"]
[White "chito89"]
[Black "djano"]
[Result "1-0"]
[WhiteElo "2932"]
[BlackElo "2632"]
[TimeControl "180+1"]
[EndTime "9:07:11 PST"]
[Termination "chito89 won by resignation"]

1. d4 {[%clk 0:02:58.9]} 1... Nf6 {[%clk 0:03:00]} 2. c4 {[%clk 0:02:59.3]} 2...
g6 {[%clk 0:03:00.2]} 3. Nc3 {[%clk 0:02:59.7]} 3... Bg7 {[%clk 0:03:00.3]} 4.
e4 {[%clk 0:03:00.2]} 4... d6 {[%clk 0:03:00.9]} 5. Nge2 {[%clk 0:03:00.2]} 5...
O-O {[%clk 0:02:59.3]} 6. Ng3 {[%clk 0:03:00.6]} 6... h5 {[%clk 0:02:59.6]} 7.
Be2 {[%clk 0:03:00.6]} 7... h4 {[%clk 0:02:59.3]} 8. Nf1 {[%clk 0:03:00.9]} 8...
c5 {[%clk 0:02:58.5]} 9. d5 {[%clk 0:03:00.5]} 9... e6 {[%clk 0:02:58.8]} 10.
Bg5 {[%clk 0:03:00.3]} 10... Qb6 {[%clk 0:02:53.5]} 11. Qd2 {[%clk 0:02:57]}
11... exd5 {[%clk 0:02:40.6]} 12. cxd5 {[%clk 0:02:57.1]} 12... Re8 {[%clk
0:02:38.4]} 13. f3 {[%clk 0:02:53.1]} 13... h3 {[%clk 0:02:36.2]} 14. g4 {[%clk
0:02:51.8]} 14... Nbd7 {[%clk 0:02:27.7]} 15. Ne3 {[%clk 0:02:51]} 15... Ne5
{[%clk 0:02:15.8]} 16. O-O {[%clk 0:02:50.6]} 16... Bd7 {[%clk 0:02:06.2]} 17.
Bxf6 {[%clk 0:02:49.9]} 17... Bxf6 {[%clk 0:02:06.2]} 18. f4 {[%clk 0:02:50.5]}
18... Nxg4 {[%clk 0:01:34.7]} 19. Bxg4 {[%clk 0:02:49.5]} 19... Rad8 {[%clk
0:01:22.3]} 20. Bxd7 {[%clk 0:02:36.7]} 20... Rxd7 {[%clk 0:01:22.3]} 21. e5
{[%clk 0:02:17.2]} 21... Bg7 {[%clk 0:01:16.3]} 22. Nc4 {[%clk 0:02:14.2]} 22...
Qb4 {[%clk 0:01:16.2]} 23. Nxd6 {[%clk 0:02:14.1]} 23... Red8 {[%clk 0:01:12.9]}
24. Nce4 {[%clk 0:02:08.6]} 1-0

[Event "Early-Titled-Tuesday-Blitz-January-16-2024"]
[Site "Chess.com"]
[Date "2024.01.16"]
[Round "6"]
[White "Juicy_Fork"]
[Black "RojonR"]
[Result "1-0"]
[WhiteElo "2427"]
[BlackElo "2587"]
[TimeControl "180+1"]
[EndTime "9:07:17 PST"]
[Termination "Juicy_Fork won by resignation"]

1. e4 {[%clk 0:02:57.1]} 1... e5 {[%clk 0:02:59.1]} 2. Nf3 {[%clk 0:02:55.4]}
2... Nc6 {[%clk 0:02:59.4]} 3. Bb5 {[%clk 0:02:55.3]} 3... a6 {[%clk 0:02:59.1]}
4. Ba4 {[%clk 0:02:55.7]} 4... Nf6 {[%clk 0:02:49.7]} 5. O-O {[%clk 0:02:55.3]}
5... b5 {[%clk 0:02:45.3]} 6. Bb3 {[%clk 0:02:55]} 6... Be7 {[%clk 0:02:46.2]}
7. Re1 {[%clk 0:02:54.5]} 7... d6 {[%clk 0:02:46.4]} 8. c3 {[%clk 0:02:54.7]}
8... Be6 {[%clk 0:02:46.2]} 9. d4 {[%clk 0:02:47]} 9... exd4 {[%clk 0:02:35.4]}
10. cxd4 {[%clk 0:02:46.8]} 10... Bxb3 {[%clk 0:02:35.9]} 11. axb3 {[%clk
0:02:39.2]} 11... O-O {[%clk 0:02:35.7]} 12. Nc3 {[%clk 0:02:34.6]} 12... Re8
{[%clk 0:02:27.2]} 13. Bg5 {[%clk 0:02:28.3]} 13... h6 {[%clk 0:02:25.7]} 14.
Bxf6 {[%clk 0:02:28.2]} 14... Bxf6 {[%clk 0:02:26.6]} 15. Nd5 {[%clk 0:02:28.2]}
15... Be7 {[%clk 0:02:15.6]} 16. Rc1 {[%clk 0:02:25.9]} 16... Qd7 {[%clk
0:02:11.6]} 17. Qc2 {[%clk 0:02:25.6]} 17... Nd8 {[%clk 0:02:07.9]} 18. Qxc7
{[%clk 0:02:14.4]} 18... Qe6 {[%clk 0:02:01.7]} 19. Qb6 {[%clk 0:02:08.2]} 19...
Bg5 {[%clk 0:01:36.5]} 20. Nxg5 {[%clk 0:02:04]} 20... hxg5 {[%clk 0:01:35.5]}
21. Nc7 {[%clk 0:02:03.2]} 21... Rc8 {[%clk 0:01:24.2]} 22. Nxe6 {[%clk
0:02:00.5]} 22... Rxc1 {[%clk 0:01:25.1]} 23. Rxc1 {[%clk 0:01:59.3]} 1-0

[Event "Early-Titled-Tuesday-Blitz-January-16-2024"]
[Site "Chess.com"]
[Date "2024.01.16"]
[Round "6"]
[White "Akewjon"]
[Black "DenLaz"]
[Result "0-1"]
[WhiteElo "2756"]
[BlackElo "3076"]
[TimeControl "180+1"]
[EndTime "9:07:27 PST"]
[Termination "DenLaz won by resignation"]

1. Nf3 {[%clk 0:03:00.9]} 1... d5 {[%clk 0:02:59.8]} 2. c4 {[%clk 0:03:00.7]}
2... e6 {[%clk 0:02:59.8]} 3. e3 {[%clk 0:03:00.9]} 3... Nf6 {[%clk 0:03:00.4]}
4. Nc3 {[%clk 0:03:01.2]} 4... b6 {[%clk 0:02:59.1]} 5. g3 {[%clk 0:03:01]} 5...
Bb7 {[%clk 0:02:55]} 6. Bg2 {[%clk 0:03:01.3]} 6... dxc4 {[%clk 0:02:51.1]} 7.
O-O {[%clk 0:02:49.3]} 7... Nbd7 {[%clk 0:02:49.7]} 8. Qa4 {[%clk 0:02:46.6]}
8... Be7 {[%clk 0:02:49.6]} 9. Qxc4 {[%clk 0:02:45.1]} 9... O-O {[%clk 0:02:50]}
10. Rd1 {[%clk 0:02:17.7]} 10... c5 {[%clk 0:02:49.4]} 11. d4 {[%clk 0:02:07.8]}
11... Rc8 {[%clk 0:02:49]} 12. Qa4 {[%clk 0:02:01.4]} 12... a6 {[%clk
0:02:45.1]} 13. dxc5 {[%clk 0:02:00]} 13... Rxc5 {[%clk 0:02:42.6]} 14. Bd2
{[%clk 0:01:56.9]} 14... Qa8 {[%clk 0:02:41]} 15. Ne1 {[%clk 0:01:56.5]} 15...
Bxg2 {[%clk 0:02:38.9]} 16. Nxg2 {[%clk 0:01:57.4]} 16... Ne5 {[%clk 0:02:39.3]}
17. Be1 {[%clk 0:01:53.8]} 17... Nf3+ {[%clk 0:02:29.1]} 18. Kh1 {[%clk
0:01:53.7]} 18... b5 {[%clk 0:02:17.4]} 19. Qf4 {[%clk 0:01:44.7]} 19... Rf5
{[%clk 0:02:09.9]} 20. Qc7 {[%clk 0:01:43.6]} 20... Nxe1 {[%clk 0:02:06.4]} 21.
Rxe1 {[%clk 0:01:39.3]} 21... Rxf2 {[%clk 0:02:06.9]} 22. e4 {[%clk 0:01:23]}
22... Bb4 {[%clk 0:02:05.1]} 23. Rf1 {[%clk 0:01:07.7]} 23... Rxf1+ {[%clk
0:01:59.8]} 24. Rxf1 {[%clk 0:01:08.6]} 24... Bxc3 {[%clk 0:02:00.4]} 25. Qxc3
{[%clk 0:01:09]} 25... Qxe4 {[%clk 0:02:00.1]} 26. Qe5 {[%clk 0:01:09.9]} 26...
Qxe5 {[%clk 0:01:59.7]} 0-1

[Event "Early-Titled-Tuesday-Blitz-January-16-2024"]
[Site "Chess.com"]
[Date "2024.01.16"]
[Round "6"]
[White "Korchmar_Vasiliy"]
[Black "Msb2"]
[Result "0-1"]
[WhiteElo "2749"]
[BlackElo "3053"]
[TimeControl "180+1"]
[EndTime "9:07:38 PST"]
[Termination "Msb2 won by resignation"]

1. e4 {[%clk 0:03:00.9]} 1... e6 {[%clk 0:03:00.4]} 2. d4 {[%clk 0:03:00.9]}
2... d5 {[%clk 0:03:01.2]} 3. exd5 {[%clk 0:03:01.8]} 3... exd5 {[%clk
0:03:02.1]} 4. Nf3 {[%clk 0:03:02.3]} 4... Nc6 {[%clk 0:03:02.7]} 5. Bb5 {[%clk
0:02:53.8]} 5... a6 {[%clk 0:03:03]} 6. Bxc6+ {[%clk 0:02:53.3]} 6... bxc6
{[%clk 0:03:03.9]} 7. O-O {[%clk 0:02:53.6]} 7... Bd6 {[%clk 0:03:04.6]} 8. Bg5
{[%clk 0:02:47.5]} 8... f6 {[%clk 0:03:03.6]} 9. Bh4 {[%clk 0:02:47.4]} 9... Ne7
{[%clk 0:03:04.1]} 10. Bg3 {[%clk 0:02:47.1]} 10... O-O {[%clk 0:03:04.6]} 11.
Nbd2 {[%clk 0:02:42.1]} 11... Bf5 {[%clk 0:03:04.9]} 12. Re1 {[%clk 0:02:33.2]}
12... Ng6 {[%clk 0:03:05.2]} 13. c4 {[%clk 0:02:27.9]} 13... Rb8 {[%clk
0:03:02.4]} 14. Qc1 {[%clk 0:02:16.8]} 14... Qd7 {[%clk 0:02:58.3]} 15. a3
{[%clk 0:02:09.7]} 15... Nf4 {[%clk 0:02:42.9]} 16. c5 {[%clk 0:02:05.1]} 16...
Nd3 {[%clk 0:02:42.9]} 17. cxd6 {[%clk 0:02:05]} 17... Nxc1 {[%clk 0:02:36.6]}
18. dxc7 {[%clk 0:02:04.5]} 18... Rxb2 {[%clk 0:02:19.4]} 19. Raxc1 {[%clk
0:02:01.2]} 19... Rc8 {[%clk 0:02:20]} 20. Nf1 {[%clk 0:01:49.8]} 20... Rxc7
{[%clk 0:02:18.1]} 21. Bxc7 {[%clk 0:01:47.6]} 21... Qxc7 {[%clk 0:02:19]} 22.
Ne3 {[%clk 0:01:47.5]} 22... Be4 {[%clk 0:02:19]} 23. Nh4 {[%clk 0:01:46.4]}
23... Qf4 {[%clk 0:02:15.6]} 24. f3 {[%clk 0:01:20]} 24... Qxh4 {[%clk
0:02:07.3]} 25. fxe4 {[%clk 0:01:20.5]} 25... dxe4 {[%clk 0:02:06.5]} 26. d5
{[%clk 0:01:12.3]} 26... Qf2+ {[%clk 0:01:56]} 27. Kh1 {[%clk 0:01:11.8]} 27...
cxd5 {[%clk 0:01:56.9]} 0-1

[Event "Early-Titled-Tuesday-Blitz-January-16-2024"]
[Site "Chess.com"]
[Date "2024.01.16"]
[Round "6"]
[White "Alexei_Kornev"]
[Black "almaguerjm"]
[Result "1-0"]
[WhiteElo "2705"]
[BlackElo "2495"]
[TimeControl "180+1"]
[EndTime "9:07:47 PST"]
[Termination "Alexei_Kornev won by resignation"]

1. e4 {[%clk 0:03:00.9]} 1... e5 {[%clk 0:02:59.9]} 2. Nf3 {[%clk 0:03:00.3]}
2... Nc6 {[%clk 0:03:00]} 3. Bb5 {[%clk 0:03:00.8]} 3... a6 {[%clk 0:03:00.1]}
4. Ba4 {[%clk 0:03:01.1]} 4... d6 {[%clk 0:03:00.4]} 5. O-O {[%clk 0:02:59.7]}
5... Bd7 {[%clk 0:03:00.5]} 6. c3 {[%clk 0:02:59.6]} 6... g6 {[%clk 0:03:01]} 7.
d4 {[%clk 0:02:59.4]} 7... Bg7 {[%clk 0:03:01.4]} 8. d5 {[%clk 0:02:59.2]} 8...
Nce7 {[%clk 0:03:01.6]} 9. c4 {[%clk 0:02:59.2]} 9... b5 {[%clk 0:03:00]} 10.
Bb3 {[%clk 0:02:56.2]} 10... Nf6 {[%clk 0:02:52.9]} 11. Re1 {[%clk 0:02:55.1]}
11... O-O {[%clk 0:02:47.7]} 12. h3 {[%clk 0:02:54.7]} 12... bxc4 {[%clk
0:02:34.4]} 13. Bxc4 {[%clk 0:02:55.6]} 13... Bb5 {[%clk 0:02:34.8]} 14. Na3
{[%clk 0:02:54.2]} 14... Rb8 {[%clk 0:02:28.5]} 15. Qd3 {[%clk 0:02:52.6]} 15...
Bxc4 {[%clk 0:02:16.4]} 16. Nxc4 {[%clk 0:02:53.5]} 16... Nd7 {[%clk 0:02:16.7]}
17. Be3 {[%clk 0:02:48]} 17... h6 {[%clk 0:02:15.4]} 18. Nfd2 {[%clk 0:02:46.7]}
18... f5 {[%clk 0:02:15.3]} 19. f3 {[%clk 0:02:46.8]} 19... Kh7 {[%clk
0:01:58.6]} 20. Rec1 {[%clk 0:02:45]} 20... f4 {[%clk 0:01:34.8]} 21. Bf2 {[%clk
0:02:44.5]} 21... Bf6 {[%clk 0:01:28.4]} 22. Rc2 {[%clk 0:02:43.8]} 22... Nb6
{[%clk 0:01:27.6]} 23. Rac1 {[%clk 0:02:42.7]} 23... Nec8 {[%clk 0:01:23.9]} 24.
Na5 {[%clk 0:02:41.4]} 24... Bh4 {[%clk 0:01:18.4]} 25. Rxc7+ {[%clk 0:02:36.8]}
25... Kg8 {[%clk 0:01:17.2]} 26. Bxh4 {[%clk 0:02:23.3]} 26... Qxh4 {[%clk
0:01:17.1]} 27. Qxa6 {[%clk 0:02:19.9]} 27... Na4 {[%clk 0:01:08.3]} 28. Rxc8
{[%clk 0:02:04.1]} 28... Rbxc8 {[%clk 0:01:03]} 29. Rxc8 {[%clk 0:02:05]} 29...
Qe1+ {[%clk 0:00:55.1]} 30. Nf1 {[%clk 0:02:04.3]} 30... Nc5 {[%clk 0:00:51.5]}
31. Rxf8+ {[%clk 0:02:00.3]} 1-0

[Event "Early-Titled-Tuesday-Blitz-January-16-2024"]
[Site "Chess.com"]
[Date "2024.01.16"]
[Round "6"]
[White "jhedigm"]
[Black "Martial2008"]
[Result "0-1"]
[WhiteElo "2581"]
[BlackElo "2733"]
[TimeControl "180+1"]
[EndTime "9:07:59 PST"]
[Termination "Martial2008 won by resignation"]

1. c4 {[%clk 0:03:00.9]} 1... e5 {[%clk 0:02:56.7]} 2. Nc3 {[%clk 0:03:00.8]}
2... Nc6 {[%clk 0:02:54.3]} 3. Nf3 {[%clk 0:03:01.1]} 3... Nf6 {[%clk
0:02:51.3]} 4. g3 {[%clk 0:02:58.4]} 4... Bb4 {[%clk 0:02:50.8]} 5. Nd5 {[%clk
0:02:47.1]} 5... e4 {[%clk 0:02:45.8]} 6. Nxb4 {[%clk 0:02:37.3]} 6... Nxb4
{[%clk 0:02:43]} 7. Nd4 {[%clk 0:02:36.6]} 7... Nc6 {[%clk 0:02:42.2]} 8. Nc2
{[%clk 0:02:34.3]} 8... d6 {[%clk 0:02:39.5]} 9. Bg2 {[%clk 0:02:33.9]} 9... h5
{[%clk 0:02:38.4]} 10. h3 {[%clk 0:02:33.8]} 10... Be6 {[%clk 0:02:37.7]} 11. b3
{[%clk 0:02:33.5]} 11... Ne5 {[%clk 0:02:32.1]} 12. d4 {[%clk 0:02:31.7]} 12...
exd3 {[%clk 0:02:31.8]} 13. exd3 {[%clk 0:02:31.8]} 13... Qe7 {[%clk 0:02:27.9]}
14. O-O {[%clk 0:02:31.4]} 14... Qd7 {[%clk 0:02:25.3]} 15. d4 {[%clk
0:02:25.7]} 15... Ng6 {[%clk 0:02:23.4]} 16. Re1 {[%clk 0:02:23.1]} 16... O-O-O
{[%clk 0:02:20.6]} 17. Kh2 {[%clk 0:02:19.5]} 17... h4 {[%clk 0:02:02]} 18. g4
{[%clk 0:02:18.8]} 18... Bxg4 {[%clk 0:01:58.8]} 19. hxg4 {[%clk 0:02:18.7]}
19... Nxg4+ {[%clk 0:01:54.2]} 20. Qxg4 {[%clk 0:02:16.3]} 20... Qxg4 {[%clk
0:01:53.9]} 21. Bh3 {[%clk 0:02:16.5]} 21... f5 {[%clk 0:01:54.6]} 22. Bxg4
{[%clk 0:02:15.9]} 22... fxg4 {[%clk 0:01:55.5]} 23. Bg5 {[%clk 0:02:15.7]}
23... Rdf8 {[%clk 0:01:53.3]} 24. Re2 {[%clk 0:02:12]} 24... Rf5 {[%clk
0:01:53]} 25. Be3 {[%clk 0:02:10.9]} 25... Rf3 {[%clk 0:01:50.3]} 26. Rg1 {[%clk
0:02:03.6]} 26... g3+ {[%clk 0:01:47.8]} 27. Kg2 {[%clk 0:02:03.6]} 27... Rhf8
{[%clk 0:01:44.3]} 28. fxg3 {[%clk 0:02:03.4]} 28... hxg3 {[%clk 0:01:40.1]} 29.
Ne1 {[%clk 0:02:03]} 29... Rf2+ {[%clk 0:01:20.9]} 30. Bxf2 {[%clk 0:01:51.2]}
30... Nf4+ {[%clk 0:01:20.8]} 31. Kf1 {[%clk 0:01:41.5]} 31... Nxe2 {[%clk
0:01:18.4]} 32. Kxe2 {[%clk 0:01:40.4]} 32... gxf2 {[%clk 0:01:18.4]} 33. Rf1
{[%clk 0:01:39]} 33... fxe1=Q+ {[%clk 0:01:18.2]} 34. Rxe1 {[%clk 0:01:37.1]}
34... Re8+ {[%clk 0:01:17.7]} 35. Kf2 {[%clk 0:01:37.5]} 35... Rxe1 {[%clk
0:01:18.6]} 36. Kxe1 {[%clk 0:01:38.2]} 36... Kd7 {[%clk 0:01:17.6]} 0-1